[Event "Late Titled Tuesday Blitz February 8 2022"]
[White "Li, Hui"]
[Black "Poormosavi, Seyed Kian"]
[WhiteFideId "15400310"]
[BlackFideId "12585807"]
[WhiteElo "1954"]
[BlackElo "2116"]
[Result "0-1"]
[Round "05"]
[TimeControl "180+1"]
[Date "2022.02.09"]
[WhiteClock "0:00:04"]
[BlackClock "0:00:48"]

1. e4 {[%clk 0:02:46]}  c6 {[%clk 0:02:59]} 2. d4 {[%clk 0:02:46]}  d5 {[%clk 0:02:59]} 3. Nd2 {[%clk 0:02:46]}  dxe4 {[%clk 0:02:59]} 4. Nxe4 {[%clk 0:02:47]}  Nf6 {[%clk 0:03:00]} 5. Nxf6+ {[%clk 0:02:47]}  exf6 {[%clk 0:03:01]} 6. Bc4 {[%clk 0:02:48]}  Bd6 {[%clk 0:02:57]} 7. Qe2+ {[%clk 0:02:48]}  Qe7 {[%clk 0:02:57]} 8. Qxe7+ {[%clk 0:02:47]}  Kxe7 {[%clk 0:02:58]} 9. Ne2 {[%clk 0:02:48]}  Re8 {[%clk 0:02:59]} 10. Bf4 {[%clk 0:02:48]}  Nd7 {[%clk 0:02:54]} 11. O-O-O {[%clk 0:02:31]}  Nb6 {[%clk 0:02:51]} 12. Bd3 {[%clk 0:02:26]}  Bxf4+ {[%clk 0:02:40]} 13. Nxf4 {[%clk 0:02:27]}  Kd6 {[%clk 0:02:41]} 14. Rhe1 {[%clk 0:02:26]}  Bd7 {[%clk 0:02:40]} 15. Nh5 {[%clk 0:02:07]}  Bg4 {[%clk 0:02:16]} 16. Nxg7 {[%clk 0:01:17]}  Rg8 {[%clk 0:02:14]} 17. Nf5+ {[%clk 0:01:12]}  Bxf5 {[%clk 0:02:14]} 18. Bxf5 {[%clk 0:01:12]}  Rxg2 {[%clk 0:02:15]} 19. Bxh7 {[%clk 0:01:08]}  Rh8 {[%clk 0:02:04]} 20. Be4 {[%clk 0:01:05]}  Rxf2 {[%clk 0:02:03]} 21. Rh1 {[%clk 0:00:43]}  Rh4 {[%clk 0:01:50]} 22. Bd3 {[%clk 0:00:38]}  Rhxh2 {[%clk 0:01:34]} 23. Rxh2 {[%clk 0:00:39]}  Rxh2 {[%clk 0:01:35]} 24. Rd2 {[%clk 0:00:39]}  Rh4 {[%clk 0:01:24]} 25. c3 {[%clk 0:00:38]}  Nd5 {[%clk 0:01:23]} 26. Rf2 {[%clk 0:00:35]}  Rf4 {[%clk 0:01:23]} 27. Rxf4 {[%clk 0:00:31]}  Nxf4 {[%clk 0:01:24]} 28. Bc4 {[%clk 0:00:31]}  Nd5 {[%clk 0:01:21]} 29. Kd2 {[%clk 0:00:31]}  Ke6 {[%clk 0:01:20]} 30. Bb3 {[%clk 0:00:27]}  Kf5 {[%clk 0:01:19]} 31. Kd3 {[%clk 0:00:22]}  Kf4 {[%clk 0:01:16]} 32. c4 {[%clk 0:00:20]}  Nc7 {[%clk 0:01:13]} 33. c5 {[%clk 0:00:13]}  Nd5 {[%clk 0:01:10]} 34. Bc4 {[%clk 0:00:13]}  Kg3 {[%clk 0:01:07]} 35. Ke4 {[%clk 0:00:11]}  Kg4 {[%clk 0:01:07]} 36. Bxd5 {[%clk 0:00:06]}  f5+ {[%clk 0:01:05]} 37. Ke5 {[%clk 0:00:03]}  cxd5 {[%clk 0:01:06]} 38. Kxd5 {[%clk 0:00:04]}  f4 {[%clk 0:01:06]} 39. c6 {[%clk 0:00:01]}  bxc6+ {[%clk 0:01:05]} 40. Kxc6 {[%clk 0:00:02]}  f3 {[%clk 0:01:06]} 41. d5 {[%clk 0:00:03]}  f2 {[%clk 0:01:07]} 42. d6 {[%clk 0:00:04]}  f1=Q {[%clk 0:01:08]} 43. d7 {[%clk 0:00:05]}  Qa6+ {[%clk 0:01:05]} 44. Kc7 {[%clk 0:00:04]}  Qb6+ {[%clk 0:01:05]} 45. Kc8 {[%clk 0:00:04]}  Qc6+ {[%clk 0:01:05]} 46. Kd8 {[%clk 0:00:04]}  f5 {[%clk 0:01:06]} 47. Ke7 {[%clk 0:00:04]}  Qc7 {[%clk 0:01:00]} 48. Ke8 {[%clk 0:00:05]}  Qe5+ {[%clk 0:01:00]} 49. Kf7 {[%clk 0:00:05]}  Qd6 {[%clk 0:00:49]} 50. Ke8 {[%clk 0:00:05]}  Qe6+ {[%clk 0:00:50]} 51. Kd8 {[%clk 0:00:05]}  f4 {[%clk 0:00:50]} 52. Kc7 {[%clk 0:00:06]}  Qc4+ {[%clk 0:00:50]} 53. Kb7 {[%clk 0:00:05]}  Qb5+ {[%clk 0:00:47]} 54. Kc7 {[%clk 0:00:05]}  Qc5+ {[%clk 0:00:47]} 55. Kb7 {[%clk 0:00:04]}  Qd6 {[%clk 0:00:48]} 56. Kc8 {[%clk 0:00:04]}  Qc6+ {[%clk 0:00:48]} 0-1


[Site "https://www.chess.com"]

[Event "Late Titled Tuesday Blitz February 8 2022"]
[White "Makarian, Rudik"]
[Black "Weetik, Vjacheslav"]
[WhiteFideId "44105681"]
[BlackFideId "4153472"]
[WhiteElo "2486"]
[BlackElo "2469"]
[Result "1-0"]
[Round "05"]
[TimeControl "180+1"]
[Date "2022.02.08"]
[WhiteClock "0:00:21"]
[BlackClock "0:00:13"]

1. e4 {[%clk 0:03:00]}  c6 {[%clk 0:03:00]} 2. Nf3 {[%clk 0:02:57]}  d5 {[%clk 0:03:00]} 3. d3 {[%clk 0:02:58]}  Bg4 {[%clk 0:02:59]} 4. Nbd2 {[%clk 0:02:57]}  e6 {[%clk 0:02:58]} 5. h3 {[%clk 0:02:57]}  Bh5 {[%clk 0:02:58]} 6. Be2 {[%clk 0:02:55]}  Nf6 {[%clk 0:02:57]} 7. O-O {[%clk 0:02:56]}  Be7 {[%clk 0:02:57]} 8. b3 {[%clk 0:02:56]}  a5 {[%clk 0:02:57]} 9. a4 {[%clk 0:02:56]}  Na6 {[%clk 0:02:55]} 10. Bb2 {[%clk 0:02:56]}  O-O {[%clk 0:02:55]} 11. Ne5 {[%clk 0:02:49]}  Bxe2 {[%clk 0:02:54]} 12. Qxe2 {[%clk 0:02:50]}  Nd7 {[%clk 0:02:24]} 13. Nxd7 {[%clk 0:02:45]}  Qxd7 {[%clk 0:02:24]} 14. Nf3 {[%clk 0:02:45]}  f6 {[%clk 0:02:19]} 15. Rfe1 {[%clk 0:02:40]}  Rfe8 {[%clk 0:02:19]} 16. d4 {[%clk 0:02:23]}  Bb4 {[%clk 0:02:13]} 17. c3 {[%clk 0:02:22]}  Bf8 {[%clk 0:02:13]} 18. Rad1 {[%clk 0:02:20]}  Nc7 {[%clk 0:02:13]} 19. Qc2 {[%clk 0:02:14]}  b5 {[%clk 0:02:12]} 20. Bc1 {[%clk 0:02:12]}  Bd6 {[%clk 0:01:55]} 21. e5 {[%clk 0:01:59]}  Bf8 {[%clk 0:01:55]} 22. exf6 {[%clk 0:01:58]}  gxf6 {[%clk 0:01:55]} 23. Bf4 {[%clk 0:01:58]}  Bd6 {[%clk 0:01:50]} 24. Qc1 {[%clk 0:01:54]}  Kh8 {[%clk 0:01:49]} 25. Bxd6 {[%clk 0:01:47]}  Qxd6 {[%clk 0:01:49]} 26. Qh6 {[%clk 0:01:48]}  Qf8 {[%clk 0:01:45]} 27. Qf4 {[%clk 0:01:48]}  Qg7 {[%clk 0:01:40]} 28. Re2 {[%clk 0:01:44]}  Re7 {[%clk 0:01:40]} 29. Rde1 {[%clk 0:01:43]}  Rg8 {[%clk 0:01:39]} 30. g3 {[%clk 0:01:44]}  Qg6 {[%clk 0:01:24]} 31. Qd6 {[%clk 0:01:40]}  Reg7 {[%clk 0:01:17]} 32. Qxc6 {[%clk 0:01:34]}  Qh5 {[%clk 0:01:14]} 33. Kg2 {[%clk 0:01:30]}  bxa4 {[%clk 0:01:01]} 34. bxa4 {[%clk 0:01:30]}  Qf5 {[%clk 0:00:48]} 35. Qd6 {[%clk 0:01:06]}  e5 {[%clk 0:00:40]} 36. dxe5 {[%clk 0:00:46]}  Ne6 {[%clk 0:00:40]} 37. exf6 {[%clk 0:00:35]}  Rxg3+ {[%clk 0:00:40]} 38. fxg3 {[%clk 0:00:30]}  Nf4+ {[%clk 0:00:41]} 39. Kf2 {[%clk 0:00:28]}  Nd3+ {[%clk 0:00:24]} 40. Ke3 {[%clk 0:00:26]}  Nxe1 {[%clk 0:00:15]} 41. Rxe1 {[%clk 0:00:26]}  Re8+ {[%clk 0:00:13]} 42. Kd2 {[%clk 0:00:21]} 1-0


[Site "https://www.chess.com"]

[Event "Late Titled Tuesday Blitz February 8 2022"]
[White "Maksimovic, Bojan"]
[Black "Tsyhanchuk, Stanislav"]
[WhiteFideId "14408120"]
[BlackFideId "13505130"]
[WhiteElo "2450"]
[BlackElo "2078"]
[Result "1-0"]
[Round "05"]
[TimeControl "180+1"]
[Date "2022.02.09"]
[WhiteClock "0:00:06"]
[BlackClock "0:00:03"]

1. Nf3 {[%clk 0:03:00]}  d5 {[%clk 0:02:59]} 2. e3 {[%clk 0:03:00]}  Nf6 {[%clk 0:02:54]} 3. b3 {[%clk 0:03:00]}  c5 {[%clk 0:02:54]} 4. Bb2 {[%clk 0:03:00]}  Nc6 {[%clk 0:02:54]} 5. Bb5 {[%clk 0:03:00]}  g6 {[%clk 0:02:51]} 6. Bxc6+ {[%clk 0:02:53]}  bxc6 {[%clk 0:02:51]} 7. c4 {[%clk 0:02:53]}  Bg7 {[%clk 0:02:49]} 8. d3 {[%clk 0:02:53]}  O-O {[%clk 0:02:49]} 9. O-O {[%clk 0:02:53]}  d4 {[%clk 0:02:41]} 10. e4 {[%clk 0:02:31]}  a5 {[%clk 0:02:34]} 11. a4 {[%clk 0:02:21]}  Nd7 {[%clk 0:02:32]} 12. Nbd2 {[%clk 0:02:21]}  Nb8 {[%clk 0:02:32]} 13. Ba3 {[%clk 0:02:15]}  Na6 {[%clk 0:02:31]} 14. Qe2 {[%clk 0:02:11]}  Nb4 {[%clk 0:02:30]} 15. Bxb4 {[%clk 0:02:10]}  cxb4 {[%clk 0:02:31]} 16. c5 {[%clk 0:02:08]}  Ba6 {[%clk 0:02:26]} 17. Rac1 {[%clk 0:02:07]}  f5 {[%clk 0:02:08]} 18. exf5 {[%clk 0:01:26]}  Rxf5 {[%clk 0:02:06]} 19. Rfe1 {[%clk 0:01:26]}  e5 {[%clk 0:02:03]} 20. Nc4 {[%clk 0:01:23]}  Qf6 {[%clk 0:01:47]} 21. Nfd2 {[%clk 0:01:19]}  Bxc4 {[%clk 0:01:41]} 22. Rxc4 {[%clk 0:01:15]}  Rf8 {[%clk 0:01:36]} 23. Ne4 {[%clk 0:01:16]}  Qe7 {[%clk 0:01:36]} 24. Rcc1 {[%clk 0:01:14]}  Bh6 {[%clk 0:01:35]} 25. Rcd1 {[%clk 0:01:14]}  Qe6 {[%clk 0:01:26]} 26. Qc2 {[%clk 0:01:14]}  Qd5 {[%clk 0:01:16]} 27. Re2 {[%clk 0:01:09]}  Rh5 {[%clk 0:01:11]} 28. Ng3 {[%clk 0:01:06]}  Rh4 {[%clk 0:01:08]} 29. Ne4 {[%clk 0:01:04]}  Rh5 {[%clk 0:01:05]} 30. Rde1 {[%clk 0:01:02]}  Bf4 {[%clk 0:01:01]} 31. g3 {[%clk 0:01:02]}  Bh6 {[%clk 0:00:59]} 32. Nd6 {[%clk 0:01:01]}  Bg7 {[%clk 0:00:56]} 33. Qc4 {[%clk 0:00:57]}  g5 {[%clk 0:00:48]} 34. Ne4 {[%clk 0:00:27]}  g4 {[%clk 0:00:42]} 35. Rc1 {[%clk 0:00:22]}  Rhf5 {[%clk 0:00:31]} 36. Qc2 {[%clk 0:00:18]}  h5 {[%clk 0:00:27]} 37. h4 {[%clk 0:00:14]}  gxh3 {[%clk 0:00:26]} 38. Kh2 {[%clk 0:00:14]}  Bh6 {[%clk 0:00:24]} 39. Rf1 {[%clk 0:00:13]}  h4 {[%clk 0:00:20]} 40. Rg1 {[%clk 0:00:10]}  Kh8 {[%clk 0:00:20]} 41. g4 {[%clk 0:00:08]}  Rf3 {[%clk 0:00:17]} 42. g5 {[%clk 0:00:07]}  Bg7 {[%clk 0:00:16]} 43. Rg4 {[%clk 0:00:06]}  R8f4 {[%clk 0:00:12]} 44. Rxf4 {[%clk 0:00:06]}  Rxf4 {[%clk 0:00:13]} 45. Qd1 {[%clk 0:00:05]}  Qf7 {[%clk 0:00:11]} 46. Qg1 {[%clk 0:00:03]}  Qf5 {[%clk 0:00:09]} 47. g6 {[%clk 0:00:02]}  Kg8 {[%clk 0:00:08]} 48. f3 {[%clk 0:00:02]}  Rxf3 {[%clk 0:00:07]} 49. Rf2 {[%clk 0:00:03]}  Qf4+ {[%clk 0:00:07]} 50. Kh1 {[%clk 0:00:03]}  Bh6 {[%clk 0:00:03]} 51. Qf1 {[%clk 0:00:02]}  Rxf2 {[%clk 0:00:02]} 52. Qxf2 {[%clk 0:00:03]}  Qxf2 {[%clk 0:00:02]} 53. Nxf2 {[%clk 0:00:03]}  Kg7 {[%clk 0:00:03]} 54. Kh2 {[%clk 0:00:03]}  Kxg6 {[%clk 0:00:03]} 55. Kxh3 {[%clk 0:00:04]}  Bg5 {[%clk 0:00:04]} 56. Kg4 {[%clk 0:00:04]}  Be3 {[%clk 0:00:03]} 57. Ne4 {[%clk 0:00:04]}  Kf7 {[%clk 0:00:02]} 58. Kxh4 {[%clk 0:00:05]}  Ke6 {[%clk 0:00:03]} 59. Kg4 {[%clk 0:00:05]}  Kd5 {[%clk 0:00:03]} 60. Kf5 {[%clk 0:00:06]}  Bf4 {[%clk 0:00:03]} 61. Nf6+ {[%clk 0:00:06]} 1-0


[Site "https://www.chess.com"]

[Event "Late Titled Tuesday Blitz February 8 2022"]
[White "Meduri, Aakaash"]
[Black "Domingo Nunez, Alejandro"]
[WhiteFideId "2032252"]
[BlackFideId "22245561"]
[WhiteElo "2047"]
[BlackElo "2215"]
[Result "0-1"]
[Round "05"]
[TimeControl "180+1"]
[Date "2022.02.09"]
[WhiteClock "0:00:01"]
[BlackClock "0:00:04"]

1. d4 {[%clk 0:03:00]}  Nf6 {[%clk 0:02:59]} 2. Bg5 {[%clk 0:02:58]}  d5 {[%clk 0:02:56]} 3. e3 {[%clk 0:02:57]}  Nbd7 {[%clk 0:02:55]} 4. Bd3 {[%clk 0:02:57]}  e5 {[%clk 0:02:52]} 5. c3 {[%clk 0:02:55]}  e4 {[%clk 0:02:51]} 6. Bc2 {[%clk 0:02:55]}  Bd6 {[%clk 0:02:51]} 7. Nd2 {[%clk 0:02:56]}  h6 {[%clk 0:02:49]} 8. Bh4 {[%clk 0:02:55]}  Nf8 {[%clk 0:02:47]} 9. Rc1 {[%clk 0:02:52]}  c6 {[%clk 0:02:45]} 10. c4 {[%clk 0:02:52]}  Ng6 {[%clk 0:02:30]} 11. Bg3 {[%clk 0:02:52]}  Bxg3 {[%clk 0:02:24]} 12. hxg3 {[%clk 0:02:51]}  Bg4 {[%clk 0:02:05]} 13. f3 {[%clk 0:02:46]}  Bf5 {[%clk 0:01:44]} 14. Ne2 {[%clk 0:02:42]}  O-O {[%clk 0:01:41]} 15. g4 {[%clk 0:02:32]}  Be6 {[%clk 0:01:32]} 16. g5 {[%clk 0:02:27]}  hxg5 {[%clk 0:01:31]} 17. fxe4 {[%clk 0:02:27]}  Ng4 {[%clk 0:01:26]} 18. Ng3 {[%clk 0:02:19]}  Nh4 {[%clk 0:01:22]} 19. Qe2 {[%clk 0:02:01]}  Nxe3 {[%clk 0:01:20]} 20. cxd5 {[%clk 0:01:52]}  Nexg2+ {[%clk 0:01:14]} 21. Kf2 {[%clk 0:01:51]}  Nf4 {[%clk 0:01:13]} 22. Qe3 {[%clk 0:01:39]}  cxd5 {[%clk 0:01:13]} 23. Nf3 {[%clk 0:01:10]}  Nhg2 {[%clk 0:01:03]} 24. e5 {[%clk 0:00:57]}  f5 {[%clk 0:00:51]} 25. Qb3 {[%clk 0:00:52]}  g4 {[%clk 0:00:38]} 26. Rh2 {[%clk 0:00:45]}  gxf3 {[%clk 0:00:32]} 27. Rch1 {[%clk 0:00:44]}  Qb6 {[%clk 0:00:30]} 28. Qa3 {[%clk 0:00:20]}  Qxd4+ {[%clk 0:00:26]} 29. Kxf3 {[%clk 0:00:20]}  Rfe8 {[%clk 0:00:10]} 30. Nxf5 {[%clk 0:00:17]}  Bxf5 {[%clk 0:00:09]} 31. Bxf5 {[%clk 0:00:18]}  Qxe5 {[%clk 0:00:07]} 32. Bg4 {[%clk 0:00:05]}  Qe2+ {[%clk 0:00:06]} 33. Kg3 {[%clk 0:00:06]}  Re3+ {[%clk 0:00:06]} 34. Qxe3 {[%clk 0:00:03]}  Qxe3+ {[%clk 0:00:07]} 35. Bf3 {[%clk 0:00:03]}  Kf7 {[%clk 0:00:04]} 36. Rxg2 {[%clk 0:00:01]}  Nxg2 {[%clk 0:00:04]} 37. Kxg2 {[%clk 0:00:02]}  Re8 {[%clk 0:00:03]} 38. Rf1 {[%clk 0:00:02]}  Kg8 {[%clk 0:00:03]} 39. Bh5 {[%clk 0:00:02]}  Qg5+ {[%clk 0:00:03]} 40. Bg4 {[%clk 0:00:01]}  Qxg4+ {[%clk 0:00:04]} 0-1


[Site "https://www.chess.com"]

[Event "Late Titled Tuesday Blitz February 8 2022"]
[White "Migot, Tangi"]
[Black "Moore, Nicholas"]
[WhiteFideId "662445"]
[BlackFideId "4303709"]
[WhiteElo "2542"]
[BlackElo "2298"]
[Result "1-0"]
[Round "05"]
[TimeControl "180+1"]
[Date "2022.02.09"]
[WhiteClock "0:01:08"]
[BlackClock "0:00:03"]

1. Nf3 {[%clk 0:03:00]}  d5 {[%clk 0:02:59]} 2. c3 {[%clk 0:03:01]}  Nd7 {[%clk 0:02:57]} 3. d4 {[%clk 0:03:00]}  g6 {[%clk 0:02:56]} 4. Nbd2 {[%clk 0:03:00]}  Bg7 {[%clk 0:02:56]} 5. e4 {[%clk 0:03:00]}  dxe4 {[%clk 0:02:52]} 6. Nxe4 {[%clk 0:03:01]}  Ngf6 {[%clk 0:02:52]} 7. Nxf6+ {[%clk 0:03:01]}  Nxf6 {[%clk 0:02:52]} 8. Bc4 {[%clk 0:03:00]}  O-O {[%clk 0:02:51]} 9. Ne5 {[%clk 0:02:58]}  c5 {[%clk 0:02:44]} 10. Be3 {[%clk 0:02:50]}  cxd4 {[%clk 0:02:03]} 11. Bxd4 {[%clk 0:02:49]}  Bf5 {[%clk 0:01:58]} 12. Qe2 {[%clk 0:02:46]}  Qa5 {[%clk 0:01:49]} 13. O-O {[%clk 0:02:40]}  b5 {[%clk 0:01:44]} 14. Bxb5 {[%clk 0:02:36]}  Rab8 {[%clk 0:01:19]} 15. a4 {[%clk 0:02:35]}  a6 {[%clk 0:01:14]} 16. Nc6 {[%clk 0:02:29]}  Qc7 {[%clk 0:01:11]} 17. Nxb8 {[%clk 0:02:26]}  Qxb8 {[%clk 0:01:10]} 18. Bxa6 {[%clk 0:02:24]}  Ng4 {[%clk 0:00:43]} 19. g3 {[%clk 0:02:23]}  e5 {[%clk 0:00:44]} 20. Be3 {[%clk 0:02:19]}  e4 {[%clk 0:00:40]} 21. Bf4 {[%clk 0:02:14]}  Qb6 {[%clk 0:00:34]} 22. a5 {[%clk 0:02:11]}  Qe6 {[%clk 0:00:33]} 23. Bc4 {[%clk 0:02:10]}  Qe7 {[%clk 0:00:33]} 24. a6 {[%clk 0:02:01]}  g5 {[%clk 0:00:33]} 25. a7 {[%clk 0:01:48]}  gxf4 {[%clk 0:00:26]} 26. a8=Q {[%clk 0:01:49]}  Rxa8 {[%clk 0:00:26]} 27. Rxa8+ {[%clk 0:01:48]}  Bf8 {[%clk 0:00:27]} 28. Bd5 {[%clk 0:01:36]}  Kg7 {[%clk 0:00:21]} 29. Ra4 {[%clk 0:01:29]}  Nf6 {[%clk 0:00:15]} 30. Qc4 {[%clk 0:01:24]}  f3 {[%clk 0:00:08]} 31. Re1 {[%clk 0:01:23]}  Qe5 {[%clk 0:00:03]} 32. Bc6 {[%clk 0:01:19]}  Bc5 {[%clk 0:00:02]} 33. Bxe4 {[%clk 0:01:14]}  Bxf2+ {[%clk 0:00:02]} 34. Kxf2 {[%clk 0:01:09]}  Ng4+ {[%clk 0:00:03]} 35. Kf1 {[%clk 0:01:09]}  Nxh2+ {[%clk 0:00:03]} 36. Kf2 {[%clk 0:01:08]}  Ng4+ {[%clk 0:00:03]} 37. Kxf3 {[%clk 0:01:08]}  Nh2+ {[%clk 0:00:02]} 38. Kg2 {[%clk 0:01:08]}  Bxe4+ {[%clk 0:00:03]} 1-0


[Site "https://www.chess.com"]

[Event "Late Titled Tuesday Blitz February 8 2022"]
[White "Morris-Suzuki, Sophie"]
[Black "Prohorov, Olexandr"]
[WhiteFideId "30922615"]
[BlackFideId "14105578"]
[WhiteElo "2430"]
[BlackElo "1993"]
[Result "1-0"]
[Round "05"]
[TimeControl "180+1"]
[Date "2022.02.09"]
[WhiteClock "0:00:10"]
[BlackClock "0:00:41"]

1. d4 {[%clk 0:03:00]}  g6 {[%clk 0:02:56]} 2. e4 {[%clk 0:03:00]}  Bg7 {[%clk 0:02:54]} 3. Nc3 {[%clk 0:03:00]}  c6 {[%clk 0:02:54]} 4. Nf3 {[%clk 0:02:59]}  d5 {[%clk 0:02:52]} 5. e5 {[%clk 0:03:00]}  Bg4 {[%clk 0:02:50]} 6. Be3 {[%clk 0:02:55]}  f6 {[%clk 0:02:49]} 7. exf6 {[%clk 0:02:42]}  exf6 {[%clk 0:02:50]} 8. Bd3 {[%clk 0:02:41]}  Nh6 {[%clk 0:02:49]} 9. O-O {[%clk 0:02:41]}  O-O {[%clk 0:02:48]} 10. h3 {[%clk 0:02:39]}  Bxf3 {[%clk 0:02:48]} 11. Qxf3 {[%clk 0:02:40]}  Nf7 {[%clk 0:02:48]} 12. Rfe1 {[%clk 0:02:34]}  Nd6 {[%clk 0:02:44]} 13. Re2 {[%clk 0:02:32]}  f5 {[%clk 0:02:43]} 14. Nxd5 {[%clk 0:02:03]}  cxd5 {[%clk 0:02:41]} 15. Qxd5+ {[%clk 0:02:03]}  Kh8 {[%clk 0:02:36]} 16. Bf4 {[%clk 0:02:04]}  Ne4 {[%clk 0:02:31]} 17. Qxb7 {[%clk 0:02:02]}  Nd7 {[%clk 0:02:31]} 18. c3 {[%clk 0:01:28]}  Nb6 {[%clk 0:02:22]} 19. Bxe4 {[%clk 0:01:21]}  fxe4 {[%clk 0:02:22]} 20. Qxe4 {[%clk 0:01:21]}  Nd5 {[%clk 0:02:19]} 21. Bg3 {[%clk 0:01:21]}  Rc8 {[%clk 0:02:10]} 22. Rae1 {[%clk 0:01:21]}  a5 {[%clk 0:02:07]} 23. Qg4 {[%clk 0:01:12]}  a4 {[%clk 0:02:02]} 24. a3 {[%clk 0:01:12]}  Qb6 {[%clk 0:01:53]} 25. Qd7 {[%clk 0:01:06]}  Rcd8 {[%clk 0:01:50]} 26. Qxa4 {[%clk 0:01:05]}  Ra8 {[%clk 0:01:38]} 27. Qc4 {[%clk 0:01:03]}  Nf6 {[%clk 0:01:29]} 28. Be5 {[%clk 0:01:01]}  Rac8 {[%clk 0:01:28]} 29. Qd3 {[%clk 0:00:59]}  Qc6 {[%clk 0:01:26]} 30. Re3 {[%clk 0:00:52]}  Nh5 {[%clk 0:01:23]} 31. Bxg7+ {[%clk 0:00:52]}  Nxg7 {[%clk 0:01:23]} 32. d5 {[%clk 0:00:50]}  Qd6 {[%clk 0:01:21]} 33. c4 {[%clk 0:00:47]}  Nf5 {[%clk 0:01:21]} 34. Re6 {[%clk 0:00:46]}  Qf4 {[%clk 0:01:20]} 35. Qc3+ {[%clk 0:00:45]}  Kg8 {[%clk 0:01:19]} 36. g3 {[%clk 0:00:42]}  Qxc4 {[%clk 0:01:11]} 37. Qxc4 {[%clk 0:00:20]}  Rxc4 {[%clk 0:01:12]} 38. Rd1 {[%clk 0:00:19]}  Nd4 {[%clk 0:01:09]} 39. Re3 {[%clk 0:00:17]}  Rb8 {[%clk 0:01:04]} 40. b4 {[%clk 0:00:15]}  Kf7 {[%clk 0:01:00]} 41. Red3 {[%clk 0:00:15]}  Nf5 {[%clk 0:00:59]} 42. d6 {[%clk 0:00:15]}  Ke8 {[%clk 0:00:58]} 43. d7+ {[%clk 0:00:13]}  Kd8 {[%clk 0:00:59]} 44. Re1 {[%clk 0:00:13]}  Ne7 {[%clk 0:00:48]} 45. Rde3 {[%clk 0:00:14]}  Kxd7 {[%clk 0:00:46]} 46. Rxe7+ {[%clk 0:00:14]}  Kd6 {[%clk 0:00:47]} 47. Rxh7 {[%clk 0:00:14]}  Rf8 {[%clk 0:00:46]} 48. Rg7 {[%clk 0:00:14]}  Rf6 {[%clk 0:00:44]} 49. Rd1+ {[%clk 0:00:13]}  Kc6 {[%clk 0:00:43]} 50. Rd2 {[%clk 0:00:13]}  Rc1+ {[%clk 0:00:43]} 51. Kg2 {[%clk 0:00:13]}  Ra1 {[%clk 0:00:44]} 52. Rd3 {[%clk 0:00:12]}  Ra2 {[%clk 0:00:42]} 53. Rf3 {[%clk 0:00:12]}  Re6 {[%clk 0:00:38]} 54. h4 {[%clk 0:00:10]}  Rd2 {[%clk 0:00:37]} 55. Rh7 {[%clk 0:00:08]}  Rdd6 {[%clk 0:00:38]} 56. Rh6 {[%clk 0:00:09]}  Kb5 {[%clk 0:00:38]} 57. g4 {[%clk 0:00:08]}  Ka4 {[%clk 0:00:38]} 58. g5 {[%clk 0:00:08]}  Rc6 {[%clk 0:00:37]} 59. Rg3 {[%clk 0:00:07]}  Kb5 {[%clk 0:00:35]} 60. h5 {[%clk 0:00:07]}  gxh5 {[%clk 0:00:35]} 61. Rxe6 {[%clk 0:00:08]}  Rxe6 {[%clk 0:00:35]} 62. g6 {[%clk 0:00:08]}  Re8 {[%clk 0:00:35]} 63. Kh3 {[%clk 0:00:08]}  Rg8 {[%clk 0:00:36]} 64. f4 {[%clk 0:00:07]}  Kc6 {[%clk 0:00:37]} 65. f5 {[%clk 0:00:08]}  Kd6 {[%clk 0:00:38]} 66. f6 {[%clk 0:00:08]}  Ke6 {[%clk 0:00:39]} 67. f7 {[%clk 0:00:08]}  Kf5 {[%clk 0:00:40]} 68. fxg8=Q {[%clk 0:00:08]}  Kf6 {[%clk 0:00:41]} 69. Qf7+ {[%clk 0:00:09]}  Ke5 {[%clk 0:00:41]} 70. g7 {[%clk 0:00:09]}  Kd4 {[%clk 0:00:42]} 71. g8=Q {[%clk 0:00:10]}  Ke5 {[%clk 0:00:41]} 72. Qd5+ {[%clk 0:00:10]}  Kf4 {[%clk 0:00:41]} 73. Qgf7# {[%clk 0:00:10]} 1-0


[Site "https://www.chess.com"]

[Event "Late Titled Tuesday Blitz February 8 2022"]
[White "Musovic, Armin"]
[Black "Cupid, Kevin"]
[WhiteFideId "939935"]
[BlackFideId "7700512"]
[WhiteElo "2250"]
[BlackElo "2096"]
[Result "1-0"]
[Round "05"]
[TimeControl "180+1"]
[Date "2022.02.09"]
[WhiteClock "0:02:43"]
[BlackClock "0:02:11"]

1. a3 {[%clk 0:03:00]}  e5 {[%clk 0:02:58]} 2. Nc3 {[%clk 0:03:01]}  d5 {[%clk 0:02:57]} 3. d4 {[%clk 0:03:02]}  exd4 {[%clk 0:02:57]} 4. Qxd4 {[%clk 0:03:01]}  c6 {[%clk 0:02:58]} 5. e4 {[%clk 0:03:01]}  dxe4 {[%clk 0:02:58]} 6. Qxd8+ {[%clk 0:03:01]}  Kxd8 {[%clk 0:02:59]} 7. Bg5+ {[%clk 0:03:01]}  f6 {[%clk 0:02:59]} 8. O-O-O+ {[%clk 0:03:01]}  Kc7 {[%clk 0:02:59]} 9. Bf4+ {[%clk 0:03:02]}  Kb6 {[%clk 0:02:53]} 10. Be3+ {[%clk 0:03:02]}  Kc7 {[%clk 0:02:53]} 11. Bf4+ {[%clk 0:03:03]}  Kb6 {[%clk 0:02:54]} 12. b4 {[%clk 0:02:52]}  c5 {[%clk 0:02:11]} 13. Na4+ {[%clk 0:02:43]} 1-0


[Site "https://www.chess.com"]

[Event "Late Titled Tuesday Blitz February 8 2022"]
[White "Mustafayev, Farid"]
[Black "Costachi, Mihnea"]
[WhiteFideId "13408771"]
[BlackFideId "1217518"]
[WhiteElo "2129"]
[BlackElo "2464"]
[Result "1-0"]
[Round "05"]
[TimeControl "180+1"]
[Date "2022.02.08"]
[WhiteClock "0:01:07"]
[BlackClock "0:00:44"]

1. d4 {[%clk 0:02:36]}  Nf6 {[%clk 0:02:57]} 2. c4 {[%clk 0:02:36]}  g6 {[%clk 0:02:58]} 3. g3 {[%clk 0:02:35]}  Bg7 {[%clk 0:02:57]} 4. Bg2 {[%clk 0:02:36]}  O-O {[%clk 0:02:58]} 5. e4 {[%clk 0:02:37]}  c6 {[%clk 0:02:59]} 6. Ne2 {[%clk 0:02:37]}  d5 {[%clk 0:02:59]} 7. cxd5 {[%clk 0:02:37]}  cxd5 {[%clk 0:03:00]} 8. e5 {[%clk 0:02:38]}  Ne8 {[%clk 0:02:55]} 9. O-O {[%clk 0:02:38]}  Nc6 {[%clk 0:02:48]} 10. Nbc3 {[%clk 0:02:38]}  Nc7 {[%clk 0:02:48]} 11. b3 {[%clk 0:02:38]}  f6 {[%clk 0:02:44]} 12. exf6 {[%clk 0:02:22]}  Bxf6 {[%clk 0:02:37]} 13. Be3 {[%clk 0:02:20]}  Bg4 {[%clk 0:02:34]} 14. h3 {[%clk 0:02:17]}  Bxe2 {[%clk 0:02:27]} 15. Nxe2 {[%clk 0:02:18]}  Ne6 {[%clk 0:02:25]} 16. Qd3 {[%clk 0:02:08]}  Qd7 {[%clk 0:02:17]} 17. Rac1 {[%clk 0:02:00]}  a6 {[%clk 0:02:14]} 18. Rfd1 {[%clk 0:02:01]}  Rac8 {[%clk 0:02:13]} 19. h4 {[%clk 0:01:59]}  Ng7 {[%clk 0:02:06]} 20. Nf4 {[%clk 0:01:56]}  e6 {[%clk 0:02:07]} 21. h5 {[%clk 0:01:51]}  g5 {[%clk 0:02:02]} 22. Ne2 {[%clk 0:01:42]}  Nxh5 {[%clk 0:01:57]} 23. Bh3 {[%clk 0:01:42]}  Ng7 {[%clk 0:01:54]} 24. f4 {[%clk 0:01:42]}  gxf4 {[%clk 0:01:48]} 25. Nxf4 {[%clk 0:01:43]}  Qd6 {[%clk 0:01:42]} 26. Kg2 {[%clk 0:01:40]}  Rce8 {[%clk 0:01:38]} 27. Rh1 {[%clk 0:01:39]}  Qd7 {[%clk 0:01:06]} 28. Bg4 {[%clk 0:01:22]}  Nf5 {[%clk 0:01:06]} 29. Nxe6 {[%clk 0:01:18]}  Qxe6 {[%clk 0:01:01]} 30. Bxf5 {[%clk 0:01:11]}  Qxe3 {[%clk 0:01:01]} 31. Bxh7+ {[%clk 0:01:11]}  Kh8 {[%clk 0:00:54]} 32. Bg8+ {[%clk 0:01:08]}  Bh4 {[%clk 0:00:44]} 33. Qh7# {[%clk 0:01:07]} 1-0


[Site "https://www.chess.com"]